fUST/lending_fUST_20240704
["ID","MTS","AMOUNT","RATE_DAILY","PERIOD"]
[331128935,1720099841392,-553.36074821,0.00013837,2]
[331128937,1720099841403,-682.24,0.00013837,2]
[331128939,1720099841412,-711.67,0.00013837,2]
[331128942,1720099841423,-554.53295785,0.00013837,2]
[331128944,1720099841432,-506.00537263,0.00013837,2]
[331128946,1720099841442,-500.0,0.00013837,2]
[331128948,1720099841452,-515.76908694,0.00013837,2]
[331128950,1720099841462,-500.0,0.00013837,2]
[331128952,1720099841471,-500.0,0.00013837,2]
[331128954,1720099841488,-500.0,0.00013837,2]
[331128956,1720099841498,-510.2042694,0.00013837,2]
[331128958,1720099841510,-500.0,0.00013837,2]
[331128960,1720099841520,-501.37314674,0.00013837,2]
[331128962,1720099841529,-500.0,0.00013837,2]
[331128964,1720099841538,-500.0,0.00013837,2]
[331128966,1720099841548,-507.8980568,0.00013837,2]
[331128968,1720099841558,-501.81345477,0.00013837,2]
[331128970,1720099841568,-500.0,0.00013837,2]
[331128972,1720099841578,-500.0,0.00013837,2]
[331128974,1720099841589,-500.0,0.00013837,2]
[331128976,1720099841599,-500.0,0.00013837,2]
[331128978,1720099841608,-500.0,0.00013837,2]
[331128981,1720099841619,-500.0,0.00013837,2]
[331128983,1720099841629,-504.30316404,0.00013837,2]
[331128985,1720099841639,-500.0,0.00013837,2]
[331128987,1720099841648,-500.0,0.00013837,2]
[331128989,1720099841658,-500.0,0.00013837,2]
[331128991,1720099841668,-500.0,0.00013837,2]
[331128993,1720099841679,-500.0,0.00013837,2]
[331128995,1720099841690,-500.0,0.00013837,2]
[331128997,1720099841700,-502.40125518,0.00013837,2]
[331128999,1720099841709,-500.0,0.00013837,2]
[331129001,1720099841719,-500.0,0.00013837,2]
[331129003,1720099841733,-504.73000229,0.00013837,2]
[331129005,1720099841742,-220.77620064,0.00013837,2]
[331129007,1720099841752,-500.0,0.00013837,2]
[331129009,1720099841761,-504.38520891,0.00013837,2]
[331129011,1720099841771,-500.0,0.00013837,2]
[331129013,1720099841781,-500.0,0.00013837,2]
[331129015,1720099841791,-228.33099257,0.00013837,2]
[331129017,1720099841800,-577.87447147,0.00013837,2]
[331129019,1720099841809,-500.0,0.00013838,2]
[331129021,1720099841819,-500.0,0.00013838,2]
[331129023,1720099841828,-1033.3,0.00013838,2]
[331129025,1720099841838,-500.0,0.00013838,2]
[331129027,1720099841847,-500.0,0.00013838,2]
[331129029,1720099841858,-500.0,0.00013838,2]
[331129031,1720099841867,-500.0,0.00013838,2]
[331129033,1720099841876,-500.0,0.00013838,2]
[331129035,1720099841886,-500.0,0.00013839,2]
[331129037,1720099841895,-500.0,0.00013839,2]
[331129039,1720099841905,-500.0,0.00013839,2]
[331129041,1720099841914,-500.0,0.00013839,2]
[331129043,1720099841924,-506.93289652,0.00013839,2]
[331129045,1720099841933,-500.0,0.00013839,2]
[331129047,1720099841943,-500.0,0.00013839,2]
[331129049,1720099841953,-500.0,0.00013839,2]
[331129051,1720099841962,-500.0,0.00013839,2]
[331129053,1720099841975,-500.0,0.00013839,2]
[331129055,1720099841990,-500.0,0.0001384,2]
[331129058,1720099842000,-500.0,0.0001384,2]
[331129060,1720099842010,-500.0,0.0001384,2]
[331129062,1720099842020,-500.0,0.0001384,2]
[331129064,1720099842032,-174.55497326,0.0001384,2]
[331129066,1720099842041,-500.0,0.0001384,2]
[331129068,1720099842050,-2063.84,0.0001384,2]
[331129070,1720099842061,-500.0,0.0001384,2]
[331129072,1720099842070,-500.0,0.0001384,2]
[331129074,1720099842079,-500.0,0.0001384,2]
[331129076,1720099842089,-500.0,0.0001384,2]
[331129078,1720099842101,-506.15742371,0.0001384,2]
[331129080,1720099842111,-579.28430511,0.0001384,2]
[331129082,1720099842120,-500.0,0.0001384,2]
[331129084,1720099842130,-501.83450842,0.0001384,2]
[331129086,1720099842140,-500.0,0.0001384,2]
[331129088,1720099842150,-500.0,0.0001384,2]
[331129090,1720099842159,-500.0,0.0001384,2]
[331129092,1720099842168,-500.0,0.0001384,2]
[331129094,1720099842178,-500.0,0.0001384,2]
[331129096,1720099842188,-500.0,0.0001384,2]
[331129098,1720099842198,-500.0,0.0001384,2]
[331129100,1720099842207,-528.13,0.0001384,2]
[331129102,1720099842216,-500.0,0.0001384,2]
[331129104,1720099842226,-390.4820704,0.0001384,2]
[331129106,1720099842238,-184.24069671,0.0001384,2]
[331129108,1720099842247,-500.0,0.0001384,2]
[331129110,1720099842256,-500.0,0.0001384,2]
[331129112,1720099842265,-500.0,0.0001384,2]
[331129114,1720099842275,-502.50411365,0.0001384,2]
[331129116,1720099842284,-500.0,0.0001384,2]
[331129119,1720099842294,-500.0,0.0001384,2]
[331129121,1720099842303,-500.0,0.0001384,2]
[331129123,1720099842312,-502.9229916,0.0001384,2]
[331129125,1720099842322,-500.0,0.0001384,2]
[331129127,1720099842331,-500.0,0.0001384,2]
[331129129,1720099842341,-504.14166719,0.0001384,2]
[331129131,1720099842351,-500.0,0.0001384,2]
[331129133,1720099842361,-500.0,0.0001384,2]
[331129135,1720099842370,-505.10966939,0.0001384,2]
[331129137,1720099842379,-502.45667512,0.0001384,2]
[331129139,1720099842389,-500.0,0.0001384,2]
[331129141,1720099842399,-500.0,0.0001384,2]
[331129143,1720099842409,-500.0,0.0001384,2]
[331129145,1720099842418,-500.0,0.0001384,2]
[331129147,1720099842428,-500.0,0.0001384,2]
[331129149,1720099842437,-500.0,0.0001384,2]
[331129151,1720099842447,-500.0,0.0001384,2]
[331129153,1720099842456,-660.11,0.0001384,2]
[331129155,1720099842465,-500.0,0.0001384,2]
[331129158,1720099842474,-500.0,0.0001384,2]
[331129160,1720099842488,-500.0,0.0001384,2]
[331129162,1720099842497,-749.23,0.0001384,2]
[331129163,1720099842506,-500.0,0.0001384,2]
[331129166,1720099842515,-500.0,0.0001384,2]
[331129167,1720099842524,-509.76,0.0001384,2]
[331129170,1720099842533,-500.0,0.0001384,2]
[331129171,1720099842542,-721.73,0.0001384,2]
[331129173,1720099842552,-500.0,0.0001384,2]
[331129176,1720099842562,-564.04,0.0001384,2]
[331129178,1720099842572,-500.0,0.0001384,2]
[331129180,1720099842581,-500.0,0.0001384,2]
[331129182,1720099842590,-500.0,0.0001384,2]
[331129184,1720099842599,-500.0,0.0001384,2]
[331129186,1720099842608,-500.0,0.0001384,2]
[331129188,1720099842618,-500.0,0.0001384,2]
[331129190,1720099842627,-502.60970296,0.0001384,2]
[331129192,1720099842636,-500.0,0.0001384,2]
[331129194,1720099842645,-500.0,0.0001384,2]
[331129196,1720099842655,-515.95480995,0.0001384,2]
[331129198,1720099842664,-500.0,0.0001384,2]
[331129199,1720099842674,-500.0,0.0001384,2]
[331129201,1720099842685,-500.0,0.0001384,2]
[331129203,1720099842695,-529.05,0.00013841,2]
[331129205,1720099842705,-500.0,0.00013841,2]
[331129207,1720099842714,-983.16,0.00013841,2]
[331129209,1720099842724,-500.0,0.00013841,2]
[331129211,1720099842737,-833.75,0.00013841,2]
[331129213,1720099842746,-500.0,0.00013841,2]
[331129215,1720099842756,-500.0,0.00013841,2]
[331129217,1720099842765,-4340.5,0.00013841,2]
[331129219,1720099842775,-500.0,0.00013841,2]
[331129221,1720099842784,-936.55,0.00013841,2]
[331129223,1720099842794,-500.0,0.00013841,2]
[331129225,1720099842803,-394.077144,0.00013841,2]
[331129228,1720099842813,-548.28,0.00013841,2]
[331129229,1720099842822,-500.0,0.00013841,2]
[331129231,1720099842832,-500.0,0.00013841,2]
[331129234,1720099842842,-500.0,0.00013841,2]
[331129236,1720099842851,-454.67725143,0.00013841,2]
[331129238,1720099842860,-500.0,0.00013841,2]
[331129240,1720099842869,-511.60778027,0.00013841,2]
[331129242,1720099842879,-526.44,0.00013841,2]
[331129243,1720099842888,-500.0,0.00013841,2]
[331129245,1720099842897,-500.0,0.00013841,2]
[331129247,1720099842907,-11675.62,0.00013841,2]
[331129250,1720099842916,-615.16,0.00013841,2]
[331129251,1720099842926,-500.0,0.00013842,2]
[331129254,1720099842935,-500.0,0.00013842,2]
[331129256,1720099842945,-802.48,0.00013842,2]
[331129258,1720099842955,-500.0,0.00013842,2]
[331129260,1720099842964,-929.35,0.00013842,2]
[331129262,1720099842973,-7359.81,0.00013842,2]
[331129264,1720099842986,-5121.82,0.00013842,2]
[331129266,1720099842996,-3285.33,0.00013842,2]
[331129268,1720099843011,-1002.49,0.00013842,2]
[331129270,1720099843020,-769.04,0.00013843,2]
[331129272,1720099843030,-833.75,0.00013846,2]
[331129274,1720099843039,-1024.21570708,0.00013876,2]
[331129276,1720099843050,-1024.21570708,0.00013945,2]
[331129278,1720099843059,-2000.0,0.0001401,2]
[331129280,1720099843069,-1024.21570708,0.00014015,2]
[331129282,1720099843079,-11486.5537101,0.00014099,2]
[331129284,1720099843089,-153.0,0.000141,2]
[331129286,1720099843099,-307.9309405,0.000141,2]
[331129288,1720099843108,-153.0,0.000141,2]
[331129290,1720099843118,-11486.5537101,0.00014101,2]
[331129292,1720099843127,-500.0,0.00014103,2]
[331129294,1720099843137,-500.0,0.00014103,2]
[331129296,1720099843146,-235.44598207,0.00014103,2]
[331129298,1720099843155,-500.0,0.00014103,2]
[331129300,1720099843164,-501.43587116,0.00014103,2]
[331129302,1720099843175,-500.0,0.00014103,2]
[331129304,1720099843184,-11486.5537101,0.00014104,2]
[331129306,1720099843193,-162.034048,0.00014104,2]
[331129308,1720099843202,-151.0,0.00014104,2]
[331129310,1720099843212,-833.75,0.00014105,2]
[331129312,1720099843222,-500.0,0.00014105,2]
[331129314,1720099843234,-761.26,0.00014105,2]
[331129316,1720099843244,-2846.79,0.00014105,2]
[331129318,1720099843253,-500.0,0.00014105,2]
[331129320,1720099843263,-808.62,0.00014105,2]
[331129322,1720099843274,-15569.92,0.00014105,2]
[331129324,1720099843284,-11486.5537101,0.00014105,2]
[331129326,1720099843296,-1828.79,0.00014109,2]
[331129328,1720099843307,-2846.66,0.00014109,2]
[331129330,1720099843318,-152.694731,0.00014109,2]
[331129332,1720099843328,-947.3,0.00014109,2]
[331129334,1720099843338,-151.0,0.00014109,2]
[331129336,1720099843349,-151.0,0.00014109,2]
[331129338,1720099843359,-194.703043,0.00014109,2]
[331129340,1720099843369,-500.0,0.00014109,2]
[331129342,1720099843380,-199.465859,0.00014109,2]
[331129344,1720099843389,-576.88,0.00014109,2]
[331129346,1720099843399,-2038.08,0.00014109,2]
[331129351,1720099843526,-2641.63,0.00014109,2]
[331129352,1720099843535,-1431.99,0.00014109,2]
[331129353,1720099843545,-500.0,0.00014109,2]
[331129354,1720099843554,-500.0,0.00014109,2]
[331129355,1720099843564,-1157.32,0.00014109,2]
[331129356,1720099843573,-500.0,0.00014109,2]
[331129357,1720099843582,-4824.14,0.00014109,2]
[331129358,1720099843591,-1078.95,0.0001411,2]
[331129359,1720099843600,-500.0,0.0001411,2]
[331129361,1720099843610,-1500.84,0.0001411,2]
[331129362,1720099843619,-500.0,0.0001411,2]
[331129363,1720099843628,-428.44142637,0.0001411,2]
[331129364,1720099843637,-953.85,0.0001411,2]
[331129366,1720099843646,-1278.95,0.0001411,2]
[331129369,1720099843656,-151.0,0.0001411,2]
[331129372,1720099843665,-500.0,0.0001411,2]
[331129374,1720099843675,-385.34945,0.0001411,2]
[331129375,1720099843686,-500.0,0.0001411,2]
[331129377,1720099843695,-385.34945,0.0001411,2]
[331129379,1720099843704,-500.0,0.0001411,2]
[331129381,1720099843713,-201.46254985,0.0001411,2]
[331129383,1720099843722,-500.0,0.0001411,2]
[331129385,1720099843735,-500.0,0.0001411,2]
[331129387,1720099843744,-500.0,0.0001411,2]
[331129389,1720099843753,-500.0,0.0001411,2]
[331129391,1720099843763,-500.0,0.0001411,2]
[331129393,1720099843772,-579.75,0.0001411,2]
[331129395,1720099843782,-1129.31,0.0001411,2]
[331129397,1720099843791,-754.82,0.0001411,2]
[331129399,1720099843800,-1070.38,0.0001411,2]
[331129401,1720099843811,-4931.05,0.0001411,2]
[331129403,1720099843820,-500.0,0.0001411,2]
[331129405,1720099843830,-500.0,0.0001411,2]
[331129407,1720099843839,-500.0,0.0001411,2]
[331129409,1720099843849,-585.96,0.0001411,2]
[331129411,1720099843858,-500.0,0.0001411,2]
[331129413,1720099843868,-500.0,0.0001411,2]
[331129415,1720099843877,-965.48,0.0001411,2]
[331129417,1720099843886,-500.0,0.0001411,2]
[331129419,1720099843895,-505.08479797,0.0001411,2]
[331129421,1720099843904,-500.0,0.0001411,2]
[331129422,1720099843914,-151.0,0.0001411,2]
[331129424,1720099843923,-9689.22,0.0001411,2]
[331129426,1720099843932,-513.24722029,0.00014111,2]
[331129430,1720099843941,-500.0,0.00014111,2]
[331129433,1720099843950,-500.0,0.00014111,2]
[331129435,1720099843959,-500.0,0.00014111,2]
[331129437,1720099843969,-500.0,0.00014111,2]
[331129439,1720099843979,-500.0,0.00014111,2]
[331129442,1720099843993,-395.20564565,0.00014111,2]
[331129444,1720099844008,-500.0,0.00014111,2]
[331129446,1720099844017,-510.51860305,0.00014111,2]
[331129448,1720099844026,-500.0,0.00014111,2]
[331129449,1720099844036,-500.0,0.00014111,2]
[331129451,1720099844046,-500.0,0.00014111,2]
[331129454,1720099844056,-768.08,0.00014111,2]
[331129456,1720099844065,-500.0,0.00014111,2]
[331129458,1720099844075,-670.86,0.00014111,2]
[331129460,1720099844084,-500.0,0.00014111,2]
[331129461,1720099844095,-500.0,0.00014111,2]
[331129464,1720099844107,-500.0,0.00014111,2]
[331129466,1720099844116,-500.0,0.00014111,2]
[331129467,1720099844126,-422.97963733,0.00014111,2]
[331129469,1720099844136,-500.0,0.00014111,2]
[331129472,1720099844145,-500.0,0.00014111,2]
[331129473,1720099844154,-490.82196108,0.00014111,2]
[331129475,1720099844163,-500.0,0.00014111,2]
[331129477,1720099844173,-500.0,0.00014111,2]
[331129479,1720099844182,-500.0,0.00014111,2]
[331129481,1720099844191,-500.0,0.00014111,2]
[331129483,1720099844201,-153.22923732,0.00014111,2]
[331129486,1720099844210,-500.0,0.00014111,2]
[331129488,1720099844219,-247.928671,0.00014111,2]
[331129489,1720099844236,-500.0,0.00014111,2]
[331129492,1720099844245,-500.0,0.00014111,2]
[331129494,1720099844254,-500.0,0.00014111,2]
[331129496,1720099844263,-513.55992585,0.00014111,2]
[331129498,1720099844272,-500.0,0.00014111,2]
[331129500,1720099844282,-507.55288444,0.00014111,2]
[331129505,1720099844291,-509.21905429,0.00014111,2]
[331129510,1720099844300,-500.0,0.00014111,2]
[331129514,1720099844310,-500.0,0.00014111,2]
[331129518,1720099844319,-500.0,0.00014111,2]
[331129522,1720099844328,-500.0,0.00014111,2]
[331129526,1720099844338,-507.48818672,0.00014111,2]
[331129529,1720099844348,-500.0,0.00014111,2]
[331129534,1720099844357,-500.0,0.00014111,2]
[331129538,1720099844367,-500.0,0.00014111,2]
[331129542,1720099844376,-524.86300531,0.00014111,2]
[331129546,1720099844386,-500.0,0.00014111,2]
[331129548,1720099844395,-500.0,0.00014111,2]
[331129553,1720099844405,-500.0,0.00014111,2]
[331129556,1720099844414,-500.0,0.00014111,2]
[331129561,1720099844424,-500.0,0.00014111,2]
[331129565,1720099844433,-843.87,0.00014111,2]
[331129569,1720099844443,-500.0,0.00014111,2]
[331129573,1720099844452,-500.0,0.00014111,2]
[331129577,1720099844462,-500.0,0.00014111,2]
[331129581,1720099844471,-500.0,0.00014111,2]
[331129584,1720099844488,-561.2071717,0.00014111,2]
[331129587,1720099844497,-500.0,0.00014111,2]
[331129590,1720099844506,-500.0,0.00014111,2]
[331129593,1720099844515,-351.13498108,0.00014111,2]
[331129596,1720099844524,-682.24,0.00014111,2]
[331129598,1720099844533,-711.67,0.00014111,2]
[331129600,1720099844542,-500.0,0.00014111,2]
[331129603,1720099844552,-500.0,0.00014111,2]
[331129606,1720099844562,-500.0,0.00014111,2]
[331129609,1720099844571,-151.0,0.00014111,2]
[331129613,1720099844580,-151.0,0.00014111,2]
[331129616,1720099844589,-500.0,0.00014111,2]
[331129619,1720099844599,-500.0,0.00014111,2]
[331129621,1720099844607,-500.0,0.00014111,2]
[331129624,1720099844617,-500.0,0.00014111,2]
[331129627,1720099844627,-500.0,0.00014111,2]
[331129630,1720099844636,-500.0,0.00014111,2]
[331129633,1720099844646,-500.0,0.00014111,2]
[331129636,1720099844655,-500.0,0.00014111,2]
[331129639,1720099844665,-500.0,0.00014111,2]
[331129641,1720099844675,-500.0,0.00014111,2]
[331129643,1720099844685,-500.0,0.00014111,2]
[331129645,1720099844696,-529.09069393,0.00014111,2]
[331129647,1720099844706,-431.99558573,0.00014111,2]
[331129649,1720099844715,-500.0,0.00014111,2]
[331129651,1720099844725,-500.0,0.00014112,2]
[331129653,1720099844740,-1033.3,0.00014112,2]
[331129655,1720099844750,-500.0,0.00014112,2]
[331129657,1720099844759,-151.0,0.00014112,2]
[331129659,1720099844769,-506.12692733,0.00014112,2]
[331129661,1720099844778,-500.0,0.00014112,2]
[331129663,1720099844787,-500.0,0.00014112,2]
[331129665,1720099844796,-151.0,0.00014112,2]
[331129667,1720099844805,-142.48149315,0.00014112,2]
[331129670,1720099844825,-123.22809985,0.00014112,2]
[331129672,1720099844834,-385.34945,0.00014112,2]
[331129674,1720099844843,-385.34945,0.00014112,2]
[331129676,1720099844852,-833.75,0.00014113,2]
[331129678,1720099844861,-500.0,0.00014113,2]
[331129680,1720099844871,-500.0,0.00014113,2]
[331129682,1720099844880,-500.0,0.00014113,2]
[331129684,1720099844889,-600.98,0.00014113,2]
[331129686,1720099844899,-500.0,0.00014113,2]
[331129688,1720099844908,-500.0,0.00014113,2]
[331129690,1720099844918,-500.0,0.00014113,2]
[331129692,1720099844929,-384.24300015,0.00014114,2]
[331129695,1720099844942,-115.75699985,0.00014114,2]
[331129697,1720099844952,-165.10567141,0.00014114,2]
[331129727,1720099845223,-500.0,0.00013829,2]
[331129729,1720099845238,-500.0,0.00014103,2]
[331129731,1720099845248,-477.2662246,0.00014114,2]
[331129733,1720099845258,-500.0,0.00014114,2]
[331129735,1720099845267,-2063.84,0.00014114,2]
[331129737,1720099845276,-500.0,0.00014114,2]
[331129739,1720099845285,-500.0,0.00014114,2]
[331129741,1720099845295,-500.0,0.00014114,2]
[331129743,1720099845304,-158.89377539,0.00014114,2]
[331129764,1720099845498,-713.352605,0.00014104,2]
[331129766,1720099845507,-713.352605,0.0001411,2]
[331129768,1720099845516,-341.10622461,0.00014114,2]
[331129770,1720099845525,-528.13,0.00014114,2]
[331129772,1720099845535,-833.75,0.00014114,2]
[331129774,1720099845544,-500.0,0.00014114,2]
[331129776,1720099845553,-508.30808108,0.00014114,2]
[331129779,1720099845563,-500.0,0.00014114,2]
[331129791,1720099845672,-500.0,0.00014114,2]
[331129794,1720099845683,-500.0,0.00014114,2]
[331129796,1720099845693,-151.0,0.00014114,2]
[331129798,1720099845702,-500.0,0.00014114,2]
[331129800,1720099845712,-500.0,0.00014114,2]
[331129802,1720099845721,-500.0,0.00014114,2]
[331129804,1720099845734,-500.0,0.00014114,2]
[331129805,1720099845744,-500.0,0.00014114,2]
[331129807,1720099845754,-660.11,0.00014114,2]
[331129809,1720099845763,-500.0,0.00014114,2]
[331129811,1720099845773,-500.0,0.00014114,2]
[331129813,1720099845782,-749.23,0.00014114,2]
[331129815,1720099845792,-598.56859175,0.00014114,2]
[331129817,1720099845801,-721.73,0.00014114,2]
[331129819,1720099845810,-564.04,0.00014114,2]
[331129821,1720099845819,-278.88,0.00014114,2]
[331129823,1720099845828,-500.0,0.00014114,2]
[331129825,1720099845837,-500.0,0.00014114,2]
[331129827,1720099845846,-500.0,0.00014114,2]
[331129829,1720099845856,-500.0,0.00014114,2]
[331129831,1720099845865,-500.0,0.00014114,2]
[331129833,1720099845874,-500.0,0.00014114,2]
[331129835,1720099845884,-500.0,0.00014114,2]
[331129837,1720099845893,-500.0,0.00014114,2]
[331129839,1720099845903,-500.0,0.00014114,2]
[331129841,1720099845912,-151.0,0.00014114,2]
[331129843,1720099845921,-713.352605,0.00014114,2]
[331129845,1720099845930,-529.05,0.00014115,2]
[331129847,1720099845940,-155.06812,0.00014115,2]
[331129849,1720099845950,-500.0,0.00014115,2]
[331129851,1720099845960,-983.16,0.00014115,2]
[331129853,1720099845969,-500.0,0.00014115,2]
[331129855,1720099845980,-833.75,0.00014115,2]
[331129857,1720099845990,-500.0,0.00014115,2]
[331129859,1720099845999,-500.0,0.00014115,2]
[331129861,1720099846015,-4340.5,0.00014115,2]
[331129863,1720099846024,-936.55,0.00014115,2]
[331129865,1720099846033,-500.0,0.00014115,2]
[331129867,1720099846043,-548.28,0.00014115,2]
[331129869,1720099846054,-500.0,0.00014115,2]
[331129871,1720099846064,-500.0,0.00014115,2]
[331129873,1720099846073,-385.34945,0.00014115,2]
[331129876,1720099846083,-500.0,0.00014115,2]
[331129878,1720099846093,-385.34945,0.00014115,2]
[331129880,1720099846102,-151.0,0.00014115,2]
[331129882,1720099846111,-151.0,0.00014115,2]
[331129884,1720099846120,-526.44,0.00014115,2]
[331129886,1720099846129,-500.0,0.00014115,2]
[331129888,1720099846139,-500.0,0.00014115,2]
[331129890,1720099846148,-11675.62,0.00014115,2]
[331129892,1720099846158,-615.16,0.00014115,2]
[331129894,1720099846167,-500.0,0.00014116,2]
[331129896,1720099846177,-802.48,0.00014116,2]
[331129898,1720099846186,-500.0,0.00014116,2]
[331129900,1720099846196,-929.35,0.00014116,2]
[331129902,1720099846205,-7359.81,0.00014116,2]
[331129904,1720099846214,-5121.82,0.00014116,2]
[331129906,1720099846223,-3285.33,0.00014116,2]
[331129908,1720099846237,-1002.49,0.00014116,2]
[331129910,1720099846246,-151.0,0.00014116,2]
[331129912,1720099846255,-713.352605,0.00014116,2]
[331129914,1720099846264,-769.04,0.00014117,2]
[331129916,1720099846273,-833.75,0.0001412,2]
[331129918,1720099846282,-6076.9012323,0.000142,2]
[331129920,1720099846291,-500.0,0.000142,2]
[331129921,1720099846301,-153.0,0.000142,2]
[331129923,1720099846311,-154.9960519,0.000142,2]
[331129925,1720099846320,-153.0,0.000142,2]
[331129927,1720099846330,-153.0,0.000142,2]
[331129930,1720099846340,-154.3134303,0.000142,2]
[331129931,1720099846349,-151.0,0.000142,2]
[331129933,1720099846359,-153.0,0.000142,2]
[331129935,1720099846368,-153.0,0.000142,2]
[331129937,1720099846378,-153.6740732,0.000142,2]
[331129940,1720099846387,-153.0,0.000142,2]
[331129942,1720099846397,-154.1744481,0.000142,2]
[331129943,1720099846406,-621.46813834,0.0001426,2]
[331129946,1720099846416,-153.0,0.00014295,2]
[331129947,1720099846425,-153.5102461,0.000143,2]
[331129950,1720099846435,-153.0,0.000143,2]
[331129952,1720099846445,-153.0,0.000143,2]
[331129954,1720099846454,-153.0,0.000143,2]
[331129956,1720099846463,-153.0,0.000143,2]
[331129958,1720099846472,-11486.5537101,0.00014373,2]
[331129959,1720099846486,-151.0,0.00014374,2]
[331129962,1720099846495,-151.0,0.00014374,2]
[331129964,1720099846505,-11486.5537101,0.00014374,2]
[331129965,1720099846514,-385.34945,0.00014376,2]
[331129968,1720099846523,-385.34945,0.00014376,2]
[331129970,1720099846533,-500.0,0.00014377,2]
[331129972,1720099846543,-248.26051819,0.00014377,2]
[331129974,1720099846552,-500.0,0.00014377,2]
[331129976,1720099846561,-500.0,0.00014377,2]
[331129978,1720099846571,-564.13486961,0.00014377,2]
[331129980,1720099846581,-11486.5537101,0.00014378,2]
[331129982,1720099846591,-500.0,0.00014379,2]
[331129984,1720099846600,-761.26,0.00014379,2]
[331129986,1720099846609,-2846.79,0.00014379,2]
[331129989,1720099846618,-808.62,0.00014379,2]
[331129992,1720099846628,-15569.92,0.00014379,2]
[331129995,1720099846638,-833.75,0.0001438,2]
[331129997,1720099846647,-8085.73207079,0.0001438,2]
[331129999,1720099846660,-3400.82163931,0.0001438,2]
[331130001,1720099846669,-1828.79,0.00014383,2]
[331130003,1720099846679,-2846.66,0.00014383,2]
[331130005,1720099846689,-947.3,0.00014383,2]
[331130007,1720099846698,-500.0,0.00014383,2]
[331130009,1720099846707,-2038.08,0.00014383,2]
[331130011,1720099846716,-1206.60925685,0.00014383,2]
[331130013,1720099846728,-1435.02074315,0.00014383,2]
[331130015,1720099846739,-1431.99,0.00014383,2]
[331130017,1720099846749,-500.0,0.00014383,2]
[331130019,1720099846759,-725.18672309,0.00014383,2]
[331130031,1720099846862,-22.88630109,0.00014383,2]
[331130162,1720099847548,-500.0,0.00013829,2]
[331130165,1720099847557,-468.71766668,0.00013829,2]
[331130168,1720099847567,-500.0,0.00014103,2]
[331130171,1720099847576,-713.352605,0.00014104,2]
[331130174,1720099847586,-190.4560022,0.00014377,2]
[331130176,1720099847596,-409.24697582,0.00014383,2]
[331130178,1720099847604,-500.0,0.00014383,2]
[331130180,1720099847614,-400.05627562,0.00014383,2]
[331130183,1720099847625,-690.4846884,0.00014383,2]
[331138504,1720100450418,155.3302388,9.999e-05,2]
[331138505,1720100522947,156.49318572,9.999e-05,2]
[331138564,1720100941939,-840.24573238,0.0001212,2]
[331138565,1720100942022,-840.24573238,0.0001212,2]
[331138566,1720100942105,-415.88353345,0.0001212,2]
[331138567,1720100967174,-882.17323235,0.00012205,2]
[331138568,1720100967248,-882.17323235,0.00012205,2]
[331138569,1720100967303,-653.45519244,0.00012205,2]
[331138575,1720100992062,-930.52926549,0.00012205,2]